Cogmind - Beta 15 @@@ ROGUE MODE // 2025.09.21 @ 23:18:48 Player: Dami Result: Destroyed by YP-TAO(R) with Subdweller Machine Gun Performance ------------- Evolutions (0) 0 Regions Visited (2) 400 Robots Destroyed (12) 60 Value Destroyed (415) 415 Prototype IDs (2) 40 Alien Tech Used (0) 0 Bonus (0) 0 TOTAL SCORE: 915 Bonus ------- None Cogmind --------- Core Integrity 0/250 Matter 269/300 Energy 247/250 System Corruption 1% Temperature Cool (0) Movement Core (350) Ox6 Location -10/Subcaves Parts ------- > --- POWER (1) -------- Ion Engine > --- PROPULSION (2) --- (None) > --- UTILITY (2) ------ Small Storage Unit Makeshift Light Armor Plating > --- WEAPON (2) ------- Beam Cannon Subdweller Machine Gun > --- INVENTORY (8) ---- Subdweller Power Source Heat Sink Targeting Computer Subdweller Beam Cannon Subdweller Beam Cannon Battle Cannon Subdweller Shrapnel Launcher Scrap Shield Fragment (45) Peak State ------------ > --- POWER ------------ Ion Engine > --- PROPULSION ------- Aluminum Leg Aluminum Leg > --- UTILITY ---------- Small Storage Unit Power Shielding > --- WEAPON ----------- Makeshift Laser Subdweller Machine Gun > --- INVENTORY -------- Ion Engine Heat Sink Targeting Computer Beam Cannon Beam Cannon Subdweller Beam Cannon Subdweller Shrapnel Launcher Scrap Shield Fragment [Rating: 12] Favorites ----------- Power Ion Engine Engine Ion Engine Propulsion Light Treads Treads Light Treads Leg Aluminum Leg Wheel Subdweller Monowheel Utility Small Storage Unit Storage Small Storage Unit Protection Power Shielding Weapon Beam Cannon Energy Gun Medium Laser Energy Cannon Beam Cannon Ballistic Gun Assault Rifle Build | -11 -10 -10 ------- Run | Yrd Mat Sub Slots Evolved . | . . . Power . | . . . Propulsion . | . . . Utility . | . . . Weapon . | . . . Parts Attached 20 | 7 6 7 Power 4 | 2 . 2 Engine 4 | 2 . 2 Core . | . . . Reactor . | . . . Propulsion 5 | 2 2 1 Treads 2 | 2 . . Leg 2 | . 2 . Wheel 1 | . . 1 Hover . | . . . Flight . | . . . Utility 4 | 1 2 1 Device . | . . . Storage 2 | 1 1 . Processor . | . . . Hackware . | . . . Protection 2 | . 1 1 Artifact . | . . . Weapon 7 | 2 2 3 Energy Gun 3 | 2 . 1 Energy Cannon 2 | . 1 1 Ballistic Gun 2 | . 1 1 Ballistic Cannon . | . . . Launcher . | . . . Special Weapon . | . . . Impact Weapon . | . . . Slashing Weapon . | . . . Piercing Weapon . | . . . Special Melee Weapon . | . . . Unidentified Prototypes . | . . . Parts Lost 5 | . . 5 Power 1 | . . 1 Propulsion 3 | . . 3 Utility . | . . . Weapon 1 | . . 1 Highest Loss Streak 4 | . . 4 To Critical Strikes . | . . . Average Backups 6 | 2 6 7 Power 1 | . 1 1 Propulsion . | 1 1 . Utility 1 | . . 2 Weapon 2 | . 1 3 Tool/Special . | . . . Unused Backups 9 | . . 9 Power 1 | . . 1 Propulsion . | . . . Utility 2 | . . 2 Weapon 6 | . . 6 Tool/Special . | . . . Average Slot Usage (%) 94 | . 96 91 Engine 13 | . 13 13 Treads 13 | . 25 . Leg 7 | . 2 13 Wheel 3 | . . 7 Storage 16 | . 19 14 Protection 9 | . 6 14 Energy Gun 5 | . 9 1 Energy Cannon 9 | . 5 12 Ballistic Gun 13 | . 12 14 Peak Build Rating 12 | 6 7 12 Average Rating 8 | 4 6 9 On Entrance 4 | . 6 7 Naked Turns . | . . . Heaviest Build 21 | 13 16 21 Greatest Support 40 | 40 40 20 Greatest Overweight (x) 4 | . . 4 Average Overweight (x) . | . . . Largest Inventory Capacity 8 | 8 8 8 Average Capacity 7 | 7 8 8 Most Carried 8 | 4 8 8 Average Carried 6 | 2 6 7 Final Capacity 8 | 8 8 8 Final Carried 8 | 4 8 8 Class Distribution -------------------- 100% | Mutant Dominant Class ---------------- Mutant | -10/Materials Mutant | -10/Subcaves Resources | -11 -10 -10 ----------- Run | Yrd Mat Sub Matter Collected 576 | 239 221 116 Remotely . | . . . Salvage Created 442 | . 244 198 Parts 19 | . 12 7 Haulers Intercepted . | . . . Recyclers Shooed . | . . . Parts Field Recycled . | . . . Retrieved Matter . | . . . Parts Self-Destructed 5 | . . 5 Prevented . | . . . Kills | -11 -10 -10 ------- Run | Yrd Mat Sub Combat Hostiles Destroyed 9 | . 4 5 Guns 8 | . 4 4 Cannons 1 | . . 1 Classes Destroyed 4 | . 2 2 Watcher 3 | . 3 . Grunt 4 | . 4 . Sentry 1 | . . 1 Subdweller 4 | . . 4 Best Kill Streak 2 | . 2 1 Combat Bots Only 2 | . 2 1 Max Kills in Single Turn 1 | . 1 1 Gunslinging . | . . . Exploded . | . . . Melee . | . . . Uniques/NPCs Destroyed . | . . . Combat | -11 -10 -10 -------- Run | Yrd Mat Sub Hostile Shots Fired 87 | . 41 46 Missed 26 | . 10 16 Hits 61 | . 31 30 Projectile 61 | . 31 30 Critical Strikes 4 | . 2 2 Damage Taken 1170 | . 406 764 Core 265 | . 56 209 Absorbed by Shields . | . . . Redirected to Shielding 34 | . 4 30 Regen/Repaired (Parts) 21 | . 21 . Core Remaining (%) 100 | 100 . . Volleys Fired 71 | . 34 37 Largest 2 | . 2 2 Hottest 90 | . 80 90 Shots Fired 139 | . 68 71 Gun 87 | . 47 40 Cannon 52 | . 21 31 Launcher . | . . . Special . | . . . Kinetic 71 | . 34 37 Thermal 68 | . 34 34 Explosive . | . . . Electromagnetic . | . . . Robot Hit Streak 14 | . 12 14 Robot Miss Streak 4 | . 4 2 Penetration Max . | . . . Secondary Targets . | . . . Shots Hit Robots 85 | . 42 43 Core Hits 26 | . 15 11 Critical Kills 1 | . . 1 Critical Parts Destroyed . | . . . Critical Strikes 3 | . 2 1 Burn 2 | . 2 . Destroy 1 | . . 1 Melee Attacks . | . . . Impact . | . . . Slashing . | . . . Piercing . | . . . Sneak Attacks . | . . . Combat Hostiles . | . . . Follow-up Attacks . | . . . Damage Inflicted 1452 | . 618 834 Guns 983 | . 425 558 Cannons 434 | . 158 276 Explosions . | . . . Melee . | . . . Ramming 35 | . 35 . Kinetic 795 | . 289 506 Thermal 622 | . 294 328 Explosive . | . . . Electromagnetic . | . . . Impact . | . . . Slashing . | . . . Piercing . | . . . Highest Corruption 1 | . 1 1 Average Corruption 1 | . 1 1 Corruption Purged . | . . . Corruption Blocked . | . . . Effects 17 | . 7 10 Message Errors 3 | . 1 2 Matter Fused 7 | . 4 3 Heat Flow Errors 3 | . 1 2 Data Loss (minor) 2 | . . 2 Data Loss (major) 2 | . 1 1 Overload Shots . | . . . Overflow Damage . | . . . Projectiles . | . . . Explosions . | . . . Melee . | . . . Knockbacks . | . . . Impact . | . . . Kinetic . | . . . Secondary . | . . . Self-Inflicted Damage . | . . . Shots . | . . . Rammed 3 | . 3 . Targets Rammed 4 | . 4 . Kicked 1 | . 1 . Crushed . | . . . Highest Temperature 271 | . 179 271 Average Temperature 66 | . 55 129 Received Heat Transfer 708 | . 282 426 Siege Activations . | . . . Martial Activations . | . . . Shielding Activations . | . . . Robots Disrupted . | . . . Combat Hostiles . | . . . Robots Corrupted . | . . . Combat Hostiles . | . . . Parts Fried . | . . . Impact Corruptions . | . . . Robots Melted . | . . . Combat Hostiles . | . . . Parts Melted 1 | . 1 . Heat Transferred 1591 | . 888 703 Parts Sabotaged . | . . . Parts Stolen . | . . . Parts Stripped . | . . . Power Chain Reactions . | . . . Alert | -11 -10 -10 ------- Run | Yrd Mat Sub Maximum Alert Level . | . . . Low Security (%) 100 | 100 100 . Level 1 . | . . . Level 2 . | . . . Level 3 . | . . . Level 4 . | . . . Level 5 . | . . . High Security . | . . . Max Security . | . . . Peak Influence 44 | . 44 . Initial . | . . . Average 5 | . 6 . Influence Increases 191 | . 171 20 Destroy 0b10 Robot/C 100 | . 80 20 Destroy 0b10 Robot/NC 15 | . 15 . Destroy Leader 26 | . 26 . Successful Hack 19 | . 19 . Destroy Structure 1 | . 1 . Partial Spotted 15 | . 15 . Lose Combat Pursuer 15 | . 15 . Influence Decreases 191 | . 169 22 Entered New Map 2 | . . 2 Time Decay 189 | . 169 20 Squads Dispatched . | . . . Investigation . | . . . Extermination . | . . . Reinforcement . | . . . Assault . | . . . Garrison . | . . . Intercept . | . . . Searches Triggered . | . . . Construction Impeded . | . . . Haulers Reinforced . | . . . Active Scanning Responses . | . . . Cargo Convoy Interrupts . | . . . Stealth | -11 -10 -10 --------- Run | Yrd Mat Sub Distress Signals 1 | . 1 . Communications Jammed . | . . . Distress Signals . | . . . Times Spotted 19 | . 13 6 Peak Tracking Total 3 | . 3 2 Tactical Retreats 1 | . 1 . Traps | -11 -10 -10 ------- Run | Yrd Mat Sub Traps Triggered 3 | . 1 2 Indirectly . | . . . Trap Hack Attempts . | . . . Triggered . | . . . Disarmed . | . . . Reprogrammed 1 | . 1 . Reused . | . . . Traps Extracted . | . . . Installed . | . . . Triggered . | . . . Machines | -11 -10 -10 ---------- Run | Yrd Mat Sub Machines Disabled 1 | . 1 . Max in Single Turn 1 | . 1 . Machines Repaired . | . . . Machines Dismantled . | . . . Machines Sabotaged . | . . . Overloaded Fab Kills . | . . . Hacking | -11 -10 -10 --------- Run | Yrd Mat Sub Machines Accessed 6 | . 6 . Terminals 4 | . 4 . Fabricators . | . . . Repair Stations 1 | . 1 . Recycling Units 1 | . 1 . Scanalyzers . | . . . Garrison Access . | . . . Total Hacks 11 | . 11 . Successful 7 | . 7 . Failed 4 | . 4 . Catastrophic . | . . . Database Lockouts . | . . . Manual . | . . . Terminals 8 | . 8 . Fabricators . | . . . Repair Stations 2 | . 2 . Recycling Units 1 | . 1 . Scanalyzers . | . . . Garrison Access . | . . . Terminal Hacks 4 | . 4 . Prototype ID Bank 1 | . 1 . Locate Traps 1 | . 1 . Reprogram Traps 1 | . 1 . Zone Layout 1 | . 1 . Fabricator Hacks . | . . . Repair Station Hacks 2 | . 2 . Scan Component 1 | . 1 . Repair 1 | . 1 . Recycling Unit Hacks 1 | . 1 . Report Inventory 1 | . 1 . Scanalyzer . | . . . Garrison Access Hacks . | . . . Unauthorized Hacks . | . . . Terminals . | . . . Fabricators . | . . . Repair Stations . | . . . Recycling Units . | . . . Scanalyzers . | . . . Garrison Access . | . . . Data Cores Recovered . | . . . Used . | . . . Hacking Detections 2 | . 2 . Full Trace Events . | . . . Feedback Events . | . . . Feedback Blocked . | . . . Robot Schematics Acquired . | . . . Robots Built . | . . . Authchips . | . . . Time . | . . . Total Robot Build Rating . | . . . Part Schematics Acquired . | . . . Parts Built . | . . . Authchips . | . . . Time . | . . . Total Part Build Rating . | . . . Parts Repaired 1 | . 1 . Time 26 | . 26 . Parts Recycled . | . . . Recycled Matter . | . . . Retrieved Matter . | . . . Retrieved Components . | . . . Parts Scanalyzed . | . . . Part Schematics Acquired . | . . . Parts Damaged . | . . . Bothacking | -11 -10 -10 ------------ Run | Yrd Mat Sub Used RIF Installer . | . . . Robots Hacked . | . . . Non-combat . | . . . Combat . | . . . Robot Hacks Applied . | . . . Relay Couplers Released . | . . . Fabnet Peak Effective % . | . . . Robots Rewired . | . . . Allies Hacked . | . . . Hacks Repelled . | . . . Allies | -11 -10 -10 -------- Run | Yrd Mat Sub Total Allies . | . . . Largest Group . | . . . Highest-Rated Group . | . . . Highest-Rated Ally . | . . . Total Orders . | . . . Ally Attacks . | . . . Total Damage . | . . . Kills . | . . . Allies Corrupted . | . . . Allies Melted . | . . . Intel | -11 -10 -10 ------- Run | Yrd Mat Sub Active Infowar (turns) . | . . . Robot Analysis Total . | . . . Derelict Logs Recovered 2 | . . 2 Drone Launches . | . . . Drone Recoveries . | . . . Exploration | -11 -10 -10 ------------- Run | Yrd Mat Sub Turns Passed 3217 | 135 1598 1484 Spaces Moved 2063 | 79 857 1127 Core 8 | 4 . 4 Treads 831 | 75 756 . Legs 634 | . 101 533 Wheels 590 | . . 590 Hover . | . . . Flight . | . . . Fastest Speed 50 | 50 120 110 Average Speed 135 | 154 155 119 Slowest Speed 250 | 160 160 250 Overloaded Moves . | . . . Propulsion Burnouts . | . . . Robots Hopped . | . . . Potential Cave-ins . | . . . Cave-ins Triggered . | . . . Exploration Rate (%) 45 | 5 84 46 Regions Visited 2 Branch Regions 1 Pre-discovered Areas 1 | . . 1 Known Exits Taken . | . . . Unknown Exits Taken 2 | 1 1 . Scrap Searched . | . . . Spaces Dug . | . . . Terrain Destroyed . | . . . Melee . | . . . Projectile . | . . . AOE . | . . . Terrain Rammed . | . . . Walls Destroyed . | . . . Machines Disabled . | . . . Actions | -11 -10 -10 --------- Run | Yrd Mat Sub Total 2343 | 89 1056 1198 Wait 147 | 1 140 6 Move 2061 | 78 856 1127 Hop . | . . . Pick Up 19 | 3 7 9 Fast Attach 14 | 6 4 4 Attach 6 | . 3 3 Detach 5 | . 3 2 Swap 1 | 1 . . Drop 15 | . 5 10 Fire 71 | . 34 37 Melee . | . . . Ram . | . . . Kick 1 | . 1 . Crush 3 | . 3 . Escape Stasis . | . . . Rewire . | . . . Trap . | . . . Miscellaneous . | . . . Route ------- -11/Scrapyard -10/Materials (discovered 4 exits: [*Mat x2] / [*Min] / *Sub) -10/Subcaves (discovered 1 exit: [*Scr]) History --------- Turn | Location | Event 10 | -11/Scrapyard | Discovered new exit (range 15) 136 | -11/Scrapyard | Entered Materials 137 | -10/Materials | Met a group of wandering Federalists 302 | -10/Materials | Build established: Mutant 880 | -10/Materials | Discovered new exit (range 12) 1183 | -10/Materials | Discovered new exit (range 12) 1424 | -10/Materials | Repaired Ion Engine 1507 | -10/Materials | Discovered new exit (range 14) 1728 | -10/Materials | Discovered new exit (range 5) 1734 | -10/Materials | Entered Subcaves 1735 | -10/Subcaves | Approached by a straggling Scientist 1736 | -10/Subcaves | Learned Materials emergency access door positions 1932 | -10/Subcaves | Core integrity fell below 50% 1937 | -10/Subcaves | Scientist uncovered a shortcut to Scraptown 1960 | -10/Subcaves | A swath of the cavern ceiling suddenly collapsed 2192 | -10/Subcaves | Visited Clippyterm 2244 | -10/Subcaves | Shifting Twisted Machinery released Sub. Optics 2270 | -10/Subcaves | Shifting Twisted Machinery released Mak. Laser 2483 | -10/Subcaves | Lost 4 parts (1p2n1w) 2632 | -10/Subcaves | Learned location of Zion (-7) 2632 | -10/Subcaves | Met a Zionite searching for "candidates" 3204 | -10/Subcaves | Core integrity fell below 20% 3218 | -10/Subcaves | Destroyed by YP-TAO(R) with Subdweller Machine Gun Last Messages --------------- 02571_ BX-41U(z): "She is not going to be happy we haven't found any suitable candidates yet." 02585_ Dropped Power Shielding. 02587_ Acquired Mak. Light Armor Plating. 02621_ Acquired 10 matter. 02632_ BX-41U(z): "Hey you! It's really dangerous down here, I feel that you could die at any moment. For your health and safety might I suggest a trip to Zion?" World map updated: -7/Zion. 02642_ System corrupted: Substantial component data lost. 02662_ System corrupted: Matter fused (-8). 02689_ Acquired 8 matter. 02751_ Subatomizers dissect the Assault Rifle. 02762_ Connecting with Clippyterm... 02762_ Current location identified: Subcaves 02777_ Subatomizers dissect the Assault Rifle, destroying it. 02845_ System corrupted: Component data lost. 02934_ 8V9H<:>V BSPDFCHP1KZFW3ACWQ:B<# 03144_ /K%GKX0TZP0DVR5O#H0BOMPW7D=Y 03187_ System corrupted: Matter fused (-6). 03211_ 8Z-Q92(R) destroyed. 03212_ Sub. Monowheel destroyed. Map ----- +----------------------------------------------------+ | # ### #?????????????# ####?# | | # #?????????????## #?# | | #??????????????### ##?# | | #????????????????# #### | | ##### #????????????????## ## | | #???## #???????????????##### " ## | | # ###???# #??#######?????##"#####"" ## %## | | # ##???##??#"""""#?????# ##?##" ####"" | | #???????#""X""#?????# #??##"#?#" " % % | | ##???####" "#?????#" #????#####"""%% ## | | ##?## #### ###????## #?#######% " % ## | | ### ### #####?## ### #""#""" " ## | | # # ### % " """ "##### | | "" " " #??# | | # %### ""! " ##?# | | ## ## * ### #?# #### ### | | ?# ## ## ###?## ###" ##?## ## | | ?# ### #????# % ###" ##?## ## | | # ###?# ##????## ## "#### ## | | ###########???#### #??????# ### ""##" # | | ?????????????????## #?###### #?# """ | | ??????????????????# ### #### #?# " ## | | ??????????????????# ### ## ##?## # ### | | ??????????????????#### ## ##??#### #??# | | ????????????????????## # #?????## ### | | ????????????????????# @ ## ##??????####### | | ????????????????????##### =### ##????######?# | | ????????????????????????## %### ##??## ### | | ?????????????????????????# #### | | ?????????????????????????# R | | ?????????????????????????# #### | | ????????????????????????# #### ### #### | | ????????????????????????# ##??### #?## ## | | ????????????????????????## ##?????## ### | | ?????????????????????????##????????# ### ### | | ????????????????????????#??????????## ##?###### | | ??????????????????????? "###???????## ##????# % | | ??????????????????????? "" ##??????# #????# % | | ????????????????????????" #?????# ##???## & | | ???????????????????????" #???## ##???#" | | ???????????????????????? ##?# #???# | | ?????????????????????? " #### ###### | | ????????????????????? " " ## # | | ???????????????????" " " ### | | ???????????????????? " " ##?#" "" " | | ???????????????????????# " ###??#"" " | | ???????????????????????# ###????####"" " | | ???????????????????????# #?????????#" "" | | ?????????????????????# #### ?????????# """ | | ????????????????????# ?????## ????????# ###" | +----------------------------------------------------+ Best States ------------- Heat Dissipation 25 Energy Generation 10 Energy Capacity 350 Matter Stores 300 Matter Capacity 300 Sight Range 16 Terrain Scan Density 10 Armor Coverage 100 Power Shielding 33 Evasion (%) 55 Recoil Reduction 2 Item Schematics ----------------- None Robot Schematics ------------------ None Fabricated ------------ Nothing Repaired ---------- Ion Engine | 65% | -10/Materials Alien Tech Used ----------------- None Achievements -------------- None Challenges ------------ None Game ------ Seed LongswordChainShredder Manual? 0 Play Time 00:25:56 Cumulative 4.8 hours Start 2025.09.21 @ 20:39:11 End 2025.09.21 @ 23:18:48 Sessions 2 Manual Loads 0 Difficulty Rogue Special Mode None Game No. 13 Rogue 13 Adventurer 0 Explorer 0 Win Type - Total 0 Types 0/0/0/0/0/0/0/0/0/0 Lore% 4 Gallery% 8 Achievement% 8 Wizard Run 0 Options --------- Layout 0 ASCII 0 Keyboard 1 Movement Numpad Keybinds 0 Fullscreen 2 Font 24/Smallcaps Map View 113x50 Zoom Use 0% Tactical HUD 1 Map Filters NONE Filters NONE Steam 1 RUN: c2bdc378-5c31-49d1-ac5c-e60f86c882cc